fUSD/lending_fUSD_20240213
["ID","MTS","AMOUNT","RATE_DAILY","PERIOD"]
[313921354,1707823870683,-1133.91,0.00034967,2]
[313921355,1707823870692,-500.0,0.00034967,2]
[313921356,1707823870701,-562.4,0.00034967,2]
[313921357,1707823870711,-500.0,0.00034987,2]
[313921358,1707823870719,-163.85216396,0.00034988,7]
[313921359,1707823870729,-1746.97762353,0.00034995,7]
[313921360,1707823870738,-239.46563263,0.00034997,2]
[313921361,1707823870747,-317.38129286,0.00034998,7]
[313921362,1707823870756,-50000.0,0.00035,5]
[313921363,1707823870765,-1268.63861743,0.00035,4]
[313921364,1707823870774,-451.06831332,0.00035,4]
[313921365,1707823870783,-155.0,0.00035,2]
[313921366,1707823870792,-843.96391728,0.00035,2]
[313921367,1707823870801,-15850.56192056,0.00035,7]
[313921368,1707823870810,-371.23891025,0.00035,4]
[313921369,1707823870818,-893.67155558,0.00035,14]
[313921370,1707823870827,-500.94847547,0.00035,4]
[313921371,1707823870836,-391.18935678,0.00035,4]
[313921372,1707823870845,-525.36283072,0.00035,2]
[313921373,1707823870859,-938.06616526,0.00035,2]
[313921374,1707823870868,-165.0,0.00035,2]
[313921375,1707823870877,-150.0,0.00035,2]
[313921376,1707823870886,-370833.0,0.00035,2]
[313921377,1707823870895,-500.13659052,0.00035,5]
[313921378,1707823870904,-738.41209399,0.00035,4]
[313921379,1707823870913,-18273.78751439,0.00035,10]
[313921380,1707823870922,-380.0,0.00035,5]
[313921381,1707823870931,-316.49211243,0.00035,30]
[313921382,1707823870940,-155.01958866,0.00035,4]
[313921383,1707823870949,-10000.0,0.00035,3]
[313921384,1707823870958,-10036.0,0.00035,4]
[313921385,1707823870967,-122858.81531459,0.00035,4]
[313921386,1707823870976,-5000.0,0.00035,2]
[313921387,1707823870986,-5000.0,0.00035,5]
[313921388,1707823870995,-5000.0,0.00035,7]
[313921389,1707823871004,-5000.0,0.00035,10]
[313921390,1707823871013,-5000.0,0.00035,5]
[313921391,1707823871022,-5997.0,0.00035,5]
[313921392,1707823871031,-5000.35027,0.00035,2]
[313921393,1707823871042,-455.0,0.00035,24]
[313921394,1707823871051,-600.0,0.00035,3]
[313921395,1707823871060,-166.63963596,0.00035,2]
[313921396,1707823871070,-1760.45342,0.00035,2]
[313921397,1707823871082,-8216.3022807,0.00035,2]
[313921398,1707823871092,-8216.3022807,0.00035,2]
[313921399,1707823871101,-8216.3022807,0.00035,2]
[313921400,1707823871112,-206.21576528,0.00035,7]
[313921401,1707823871121,-116035.71657377,0.00035,4]
[313921402,1707823871130,-300.0,0.00035,36]
[313921403,1707823871140,-8167.0,0.00035,20]
[313921404,1707823871149,-2018.66192754,0.00035,3]
[313921405,1707823871159,-7627.90260444,0.00035,2]
[313921406,1707823871169,-2302.53643614,0.00035,2]
[313921407,1707823871179,-18498.0,0.00035,4]
[313921408,1707823871188,-20000.0,0.00035,15]
[313921409,1707823871198,-856.66,0.00035,9]
[313921410,1707823871207,-886.33,0.00035,18]
[313921411,1707823871217,-19256.25429527,0.00035,2]
[313921412,1707823871226,-150.49090306,0.00035016,7]
[313921413,1707823871236,-150.0,0.00035027,7]
[313921414,1707823871246,-258.73505277,0.00035027,7]
[313921415,1707823871255,-317.38129286,0.00035037,7]
[313921416,1707823871264,-1069.936519,0.00035068,2]
[313921417,1707823871274,-7983.578855,0.00035068,2]
[313921418,1707823871283,-702.74902209,0.0003507,2]
[313921419,1707823871292,-152.79276746,0.00035088,2]
[313921420,1707823871302,-258.73505277,0.00035088,7]
[313921421,1707823871312,-306.24,0.0003509,2]
[313921422,1707823871321,-258.73505277,0.00035092,7]
[313921423,1707823871331,-541.28701973,0.00035095,2]
[313921424,1707823871340,-1228.26939065,0.00035095,2]
[313921425,1707823871349,-1025.42883133,0.00035095,2]
[313921426,1707823871361,-1474.45455619,0.00035095,2]
[313921427,1707823871372,-835.13166717,0.00035095,2]
[313921428,1707823871381,-714.26930778,0.00035095,2]
[313921429,1707823871390,-1562.1634,0.00035095,2]
[313921430,1707823871400,-1088.53528281,0.00035095,2]
[313921431,1707823871410,-682.3863135,0.00035095,2]
[313921432,1707823871420,-656.5,0.00035095,2]
[313921433,1707823871429,-1750.59785301,0.00035095,2]
[313921434,1707823871439,-1786.43115332,0.00035095,2]
[313921435,1707823871449,-799.86952176,0.00035095,2]
[313921436,1707823871462,-650.98,0.00035095,2]
[313921437,1707823871471,-1873.91104672,0.00035095,2]
[313921438,1707823871481,-1445.5537615,0.00035095,2]
[313921439,1707823871490,-552.29900827,0.00035095,2]
[313921440,1707823871499,-500.7154115,0.00035095,2]
[313921441,1707823871508,-545.02940382,0.00035095,2]
[313921442,1707823871517,-1167.23220258,0.00035095,2]
[313921443,1707823871527,-1691.24218068,0.00035095,2]
[313921444,1707823871537,-326.2583476,0.00035095,2]
[313921445,1707823871547,-525.28502046,0.00035095,2]
[313921446,1707823871555,-1396.9505972,0.00035095,2]
[313921447,1707823871564,-1051.00864271,0.00035095,2]
[313921448,1707823871574,-562.49,0.00035095,2]
[313921449,1707823871583,-2526.58060941,0.00035095,2]
[313921450,1707823871594,-587.70798013,0.00035095,2]
[313921451,1707823871603,-22013.2514789,0.00035095,2]
[313921452,1707823871613,-980.51247371,0.00035095,2]
[313921453,1707823871623,-187.37214781,0.00035095,2]
[313921454,1707823871631,-176.65255428,0.00035095,2]
[313921455,1707823871640,-1644.38815817,0.00035095,2]
[313921456,1707823871649,-4024.25990942,0.00035095,2]
[313921457,1707823871659,-504.93879793,0.00035095,2]
[313921458,1707823871668,-563.47972743,0.00035095,2]
[313921459,1707823871677,-539.2258826,0.00035095,2]
[313921460,1707823871687,-1049.62510165,0.00035095,2]
[313921461,1707823871696,-513.74372173,0.00035095,2]
[313921462,1707823871706,-1057.54301991,0.00035095,2]
[313921463,1707823871714,-150.0,0.00035099,7]
[313921464,1707823871723,-4999.16,0.000351,2]
[313921465,1707823871733,-1086.216509,0.00035111,10]
[313921466,1707823871741,-2000.0,0.0003514,5]
[313921467,1707823871751,-1746.97762353,0.00035147,7]
[313921468,1707823871761,-5894.1338173,0.00035156,2]
[313921469,1707823871770,-159.25554888,0.00035161,7]
[313921470,1707823871827,-150.0,0.00035172,7]
[313921471,1707823871836,-153.1501863,0.00035178,7]
[313921472,1707823871846,-167.46473626,0.00035181,7]
[313921473,1707823871854,-154.08080949,0.00035195,7]
[313921474,1707823871864,-150.94077731,0.00035208,7]
[313921475,1707823871874,-150.0,0.00035218,7]
[313921476,1707823871882,-595.48,0.00035232,2]
[313921477,1707823871891,-720.29685109,0.00035241,2]
[313921478,1707823871901,-1134.07061108,0.00035241,2]
[313921479,1707823871910,-342.87673971,0.00035241,2]
[313921480,1707823871920,-562.41450163,0.00035241,2]
[313921481,1707823871930,-151.33874609,0.00035242,7]
[313921482,1707823871939,-150.0,0.00035244,7]
[313921483,1707823871949,-317.38129286,0.0003529,7]
[313921484,1707823871958,-200.0,0.000353,8]
[313921485,1707823871967,-200.0,0.000353,9]
[313921486,1707823871976,-150.0,0.00035316,7]
[313921487,1707823871986,-153.1501863,0.00035329,7]
[313921488,1707823871995,-9614.41893711,0.0003533,2]
[313921489,1707823872005,-1461.87054171,0.0003533,2]
[313921490,1707823872014,-33627.50445765,0.0003533,2]
[313921491,1707823872023,-1497.911127,0.00035342,2]
[313921492,1707823872033,-11177.010397,0.00035342,2]
[313921493,1707823872042,-18017.52261415,0.0003535,2]
[313921494,1707823872052,-154.08080949,0.00035353,7]
[313921495,1707823872062,-706.95464027,0.00035376,7]
[313921496,1707823872071,-150.0,0.00035389,7]
[313921497,1707823872081,-1000.0,0.000354,15]
[313921498,1707823872090,-176.83721242,0.00035407,7]
[313921499,1707823872100,-159.0,0.00035419,2]
[313921500,1707823872110,-163.85216396,0.00035424,7]
[313921501,1707823872119,-168.85258361,0.00035437,7]
[313921502,1707823872129,-50000.0,0.00035459,10]
[313921503,1707823872138,-150.0,0.00035461,7]
[313921504,1707823872147,-1746.97762353,0.0003547,7]
[313921505,1707823872157,-150.0,0.00035472,2]
[313921506,1707823872167,-150.0,0.00035479,7]
[313921507,1707823872176,-150.0,0.00035479,7]
[313921508,1707823872185,-10000.0,0.00035484,5]
[313921509,1707823872196,-2000.0,0.000355,6]
[313921510,1707823872206,-2000.0,0.000355,7]
[313921511,1707823872216,-2000.0,0.000355,10]
[313921512,1707823872226,-1500.0,0.000355,10]
[313921513,1707823872237,-1500.0,0.000355,10]
[313921514,1707823872245,-662.99462925,0.000355,2]
[313921515,1707823872255,-455.0,0.000355,24]
[313921516,1707823872264,-150.0,0.00035534,7]
[313921517,1707823872276,-178.62220091,0.00035559,7]
[313921518,1707823872285,-150.0,0.00035566,7]
[313921519,1707823872294,-158.217808,0.00035569,2]
[313921520,1707823872303,-706.95464027,0.00035571,7]
[313921521,1707823872313,-952.22,0.00035571,2]
[313921522,1707823872323,-4141.34317024,0.000356,2]
[313921523,1707823872333,-150.0,0.00035606,7]
[313921524,1707823872342,-154.08080949,0.00035611,7]
[313921525,1707823872351,-155.0,0.00035616,4]
[313921526,1707823872361,-232.38686701,0.00035616,4]
[313921527,1707823872373,-160.0,0.00035616,3]
[313921528,1707823872383,-500.0,0.00035616,3]
[313921529,1707823872392,-500.0,0.00035616,3]
[313921530,1707823872402,-500.0,0.00035616,3]
[313921531,1707823872412,-500.0,0.00035616,3]
[313921532,1707823872422,-500.0,0.00035616,3]
[313921533,1707823872432,-325.49314117,0.00035616,3]
[313921534,1707823872441,-441.78830084,0.00035616,4]
[313921535,1707823872451,-1017.47,0.00035616,2]
[313921536,1707823872460,-1017.47,0.00035616,2]
[313921537,1707823872469,-1017.47,0.00035616,2]
[313921538,1707823872478,-1017.47,0.00035616,2]
[313921539,1707823872487,-1017.47,0.00035616,2]
[313921540,1707823872497,-1017.47,0.00035616,2]
[313921541,1707823872506,-1017.47,0.00035616,2]
[313921542,1707823872515,-1017.47,0.00035616,2]
[313921543,1707823872524,-1017.47,0.00035616,2]
[313921544,1707823872533,-1017.47,0.00035616,2]
[313921545,1707823872542,-1017.47,0.00035616,2]
[313921546,1707823872551,-1017.47,0.00035616,2]
[313921547,1707823872560,-1017.47,0.00035616,2]
[313921548,1707823872569,-1017.47,0.00035616,2]
[313921549,1707823872578,-1017.47,0.00035616,2]
[313921550,1707823872587,-1017.47,0.00035616,2]
[313921551,1707823872597,-1017.47,0.00035616,2]
[313921552,1707823872606,-1017.47,0.00035616,2]
[313921553,1707823872615,-1017.47,0.00035616,2]
[313921554,1707823872625,-1017.47,0.00035616,2]
[313921555,1707823872635,-1017.47,0.00035616,2]
[313921556,1707823872644,-1017.47,0.00035616,2]
[313921557,1707823872653,-1017.47,0.00035616,2]
[313921558,1707823872662,-1017.69375664,0.00035616,2]
[313921559,1707823872671,-8805.47400636,0.00035616,4]
[313921560,1707823872681,-1025.11759392,0.00035616,4]
[313921561,1707823872690,-500.0,0.00035616,2]
[313921562,1707823872700,-151.65,0.00035616,2]
[313921563,1707823872709,-500.0,0.00035616,2]
[313921564,1707823872718,-160.072,0.00035621,2]
[313921565,1707823872727,-150.0,0.00035621,2]
[313921566,1707823872736,-321.0,0.00035621,2]
[313921567,1707823872745,-453.0,0.00035621,2]
[313921568,1707823872754,-19832.0,0.00035621,2]
[313921569,1707823872763,-2833.0,0.00035621,2]
[313921570,1707823872772,-2288.0,0.00035621,2]
[313921571,1707823872781,-2925.0,0.00035621,2]
[313921572,1707823872791,-8158.0,0.00035621,2]
[313921573,1707823872799,-841.0,0.00035621,2]
[313921574,1707823872809,-1036.0,0.00035621,2]
[313921575,1707823872818,-1231.0,0.00035621,2]
[313921576,1707823872828,-264.343,0.00035621,2]
[313921577,1707823872837,-258.73505277,0.00035652,7]
[313921578,1707823872846,-317.38129286,0.0003567,7]
[313921579,1707823872855,-150.0,0.00035678,7]
[313921580,1707823872865,-19004.47337643,0.000357,2]
[313921581,1707823872874,-9318.68,0.000357,7]
[313921582,1707823872883,-2121.08,0.000357,7]
[313921583,1707823872893,-258.73505277,0.00035719,7]
[313921584,1707823872902,-150.0,0.00035751,7]
[313921585,1707823872911,-165.39827783,0.0003577,7]
[313921586,1707823872919,-154.36120313,0.00035777,7]
[313921587,1707823872928,-209.0,0.0003578,2]
[313921588,1707823872938,-837.05,0.00035794,2]
[313921589,1707823872947,-9107.63,0.00035798,2]
[313921590,1707823872956,-150.0,0.00035799,7]
[313921591,1707823872965,-200.0,0.000358,9]
[313921592,1707823872974,-701.87,0.000358,3]
[313921593,1707823872983,-701.87,0.000358,3]
[313921594,1707823872992,-701.87,0.000358,3]
[313921595,1707823873001,-701.87,0.000358,3]
[313921596,1707823873010,-701.87,0.000358,3]
[313921597,1707823873020,-701.87,0.000358,3]
[313921598,1707823873028,-701.87,0.000358,3]
[313921599,1707823873037,-701.87,0.000358,3]
[313921600,1707823873046,-701.87,0.000358,3]
[313921601,1707823873056,-701.87,0.000358,3]
[313921602,1707823873065,-701.87,0.000358,3]
[313921603,1707823873075,-701.87,0.000358,3]
[313921604,1707823873084,-701.87,0.000358,3]
[313921605,1707823873093,-701.87,0.000358,3]
[313921606,1707823873101,-701.87,0.000358,3]
[313921607,1707823873110,-701.87,0.000358,3]
[313921608,1707823873119,-701.87,0.000358,3]
[313921609,1707823873128,-701.87,0.000358,3]
[313921610,1707823873137,-701.87,0.000358,3]
[313921611,1707823873146,-701.87,0.000358,3]
[313921612,1707823873155,-339.50458929,0.0003581,2]
[313921613,1707823873164,-154.08080949,0.00035816,7]
[313921614,1707823873173,-150.0,0.00035823,7]
[313921615,1707823873182,-500.0,0.00035877,2]
[313921616,1707823873190,-1000.0,0.00035879,2]
[313921617,1707823873199,-317.38129286,0.00035886,7]
[313921618,1707823873208,-1000.0,0.0003589,120]
[313921619,1707823873216,-150.0,0.00035895,7]
[313921620,1707823873226,-168.85258361,0.00035909,7]
[313921621,1707823873234,-4999.16,0.0003591,2]
[313921622,1707823873244,-150.0,0.00035915,7]
[313921623,1707823873253,-154.08080949,0.0003594,7]
[313921624,1707823873262,-154.16943476,0.00035946,7]
[313921625,1707823873271,-150.49090306,0.00035963,7]
[313921626,1707823873281,-150.0,0.00035968,7]
[313921627,1707823873290,-500.0,0.00035987,2]
[313921628,1707823873299,-153.5068063,0.00035988,7]
[313921629,1707823873309,-706.95464027,0.00035992,7]
[313921630,1707823873318,-50000.0,0.00036,6]
[313921631,1707823873327,-3000.0,0.00036,4]
[313921632,1707823873336,-300.0,0.00036,37]
[313921633,1707823873346,-77699.34343507,0.00036,8]
[313921634,1707823873355,-1000.0,0.00036,2]
[313921635,1707823873366,-6427.12561936,0.00036,120]
[313921636,1707823873377,-219.44836051,0.00036,4]
[313921637,1707823873386,-152424.03224026,0.00036,2]
[313921638,1707823873395,-9318.68,0.00036,7]
[313921639,1707823873405,-2121.08,0.00036,7]
[313921640,1707823873414,-213.70840068,0.00036,8]
[313921641,1707823873424,-8848.55692671,0.00036,30]
[313921642,1707823873434,-15374.0,0.00036,2]
[313921643,1707823873445,-2307.487,0.00036,4]
[313921644,1707823873454,-455.0,0.00036,25]
[313921645,1707823873464,-153.5068063,0.00036,7]
[313921646,1707823873473,-169.0,0.00036,2]
[313921647,1707823873482,-163.85216396,0.00036002,7]
[313921648,1707823873491,-161.76661052,0.00036008,7]
[313921649,1707823873500,-150.0,0.00036034,120]
[313921650,1707823873509,-150.0,0.0003604,7]
[313921651,1707823873520,-1746.97762353,0.0003605,7]
[313921652,1707823873529,-154.36120313,0.00036061,7]
[313921653,1707823873538,-151.33874609,0.00036069,7]
[313921654,1707823873547,-154.36120313,0.00036083,7]
[313921655,1707823873556,-154.33,0.000361,3]
[313921656,1707823873566,-154.33,0.000361,3]
[313921657,1707823873575,-154.33,0.000361,3]
[313921658,1707823873585,-154.33,0.000361,3]
[313921659,1707823873594,-258.73505277,0.00036106,7]
[313921660,1707823873604,-150.0,0.00036113,7]
[313921661,1707823873614,-156.75392784,0.00036128,7]
[313921662,1707823873623,-306.24,0.00036135,2]
[313921663,1707823873632,-500.0,0.00036138,2]
[313921664,1707823873642,-159.25554888,0.00036147,7]
[313921665,1707823873651,-50000.0,0.00036159,15]
[313921666,1707823873661,-258.73505277,0.00036161,7]
[313921667,1707823873670,-317.38129286,0.00036172,7]
[313921668,1707823873680,-153.5068063,0.00036175,7]
[313921669,1707823873690,-150.0,0.00036185,7]
[313921670,1707823873699,-706.95464027,0.00036198,7]
[313921671,1707823873709,-154.36120313,0.00036199,7]
[313921672,1707823873718,-1105.83316031,0.000362,2]
[313921673,1707823873728,-159.25554888,0.00036214,7]
[313921674,1707823873737,-159.25554888,0.00036216,7]
[313921675,1707823873747,-157.12628241,0.00036219,7]
[313921676,1707823873756,-153.5068063,0.00036242,7]
[313921677,1707823873766,-317.38129286,0.00036252,7]
[313921678,1707823873776,-155.0,0.00036256,7]
[313921679,1707823873785,-150.0,0.00036257,7]
[313921680,1707823873794,-150.0,0.00036264,7]
[313921681,1707823873803,-258.73505277,0.0003627,7]
[313921682,1707823873813,-154.36120313,0.00036281,7]
[313921683,1707823873823,-9318.68,0.000363,7]
[313921684,1707823873832,-2121.08,0.000363,7]
[313921685,1707823873842,-200.0,0.000363,11]
[313921686,1707823873851,-200.0,0.000363,9]
[313921687,1707823873860,-1000.0,0.000363,15]
[313921688,1707823873871,-158.0,0.000363,7]
[313921689,1707823873881,-538.90133571,0.00036301,10]
[313921690,1707823873890,-150.0,0.0003633,7]
[313921691,1707823873899,-150.0,0.00036337,2]
[313921692,1707823873909,-706.95464027,0.00036344,7]
[313921693,1707823873918,-800.0,0.00036375,2]
[313921694,1707823873927,-11844.10237905,0.0003638,30]
[313921695,1707823873937,-161.76661052,0.00036382,7]
[313921696,1707823873946,-500.0,0.00036399,2]
[313921697,1707823873956,-150.0,0.00036402,7]
[313921698,1707823873966,-317.38129286,0.00036407,7]
[313921699,1707823873975,-205.0,0.00036408,19]
[313921700,1707823873985,-151.33874609,0.00036419,7]
[313921701,1707823873995,-209.0,0.0003642,2]
[313921702,1707823874005,-150.94077731,0.00036428,7]
[313921703,1707823874015,-150.0,0.00036438,7]
[313921704,1707823874024,-150.0,0.00036438,7]
[313921705,1707823874033,-150.0,0.00036438,7]
[313921706,1707823874042,-278.86,0.00036444,2]
[313921707,1707823874051,-150.0,0.00036474,7]
[313921708,1707823874061,-153.5068063,0.00036478,7]
[313921709,1707823874070,-300.0,0.000365,8]
[313921710,1707823874079,-2133.199,0.000365,5]
[313921711,1707823874089,-455.0,0.000365,25]
[313921712,1707823874098,-239.46563263,0.00036506,2]
[313921713,1707823874107,-10000.0,0.00036508,3]
[313921714,1707823874117,-169.0,0.00036521,2]
[313921715,1707823874126,-152.0,0.00036528,5]
[313921716,1707823874135,-151.65,0.0003653,2]
[313921717,1707823874144,-150.0,0.00036547,7]
[313921718,1707823874153,-153.5068063,0.00036559,7]
[313921719,1707823874162,-258.73505277,0.00036582,7]
[313921720,1707823874171,-178.62220091,0.00036588,7]
[313921721,1707823874180,-150.94817835,0.00036599,7]
[313921722,1707823874190,-9318.68,0.000366,7]
[313921723,1707823874199,-2121.08,0.000366,7]
[313921724,1707823874208,-150.0,0.00036613,7]
[313921725,1707823874217,-150.0,0.00036619,7]
[313921726,1707823874227,-706.95464027,0.00036649,7]
[313921727,1707823874237,-154.08080949,0.00036659,7]
[313921728,1707823874246,-500.0,0.0003666,2]
[313921729,1707823874256,-50000.0,0.00036665,15]
[313921730,1707823874265,-258.73505277,0.00036682,7]
[313921731,1707823874275,-153.1501863,0.00036683,7]
[313921732,1707823874284,-1000.0,0.0003669,2]
[313921733,1707823874294,-150.0,0.00036691,7]
[313921734,1707823874304,-305.868399,0.000367,4]
[313921735,1707823874313,-339.50458929,0.000367,2]
[313921736,1707823874324,-157.12628241,0.00036707,7]
[313921737,1707823874334,-6068.70851,0.0003672,2]
[313921738,1707823874344,-152.37343803,0.0003673,5]
[313921739,1707823874355,-150.49090306,0.0003673,7]
[313921740,1707823874366,-5894.1338173,0.00036735,2]
[313921741,1707823874378,-168.85258361,0.0003674,7]
[313921742,1707823874387,-150.0,0.00036764,7]
[313921743,1707823874397,-169.26329821,0.00036764,7]
[313921744,1707823874407,-156.74226489,0.00036767,7]
[313921745,1707823874417,-154.36120313,0.00036783,7]
[313921746,1707823874427,-154.36120313,0.0003679,7]
[313921747,1707823874437,-200.0,0.000368,10]
[313921748,1707823874449,-342862.02619643,0.000368,2]
[313921749,1707823874459,-9527.01099965,0.000368,7]
[313921750,1707823874469,-8998.4,0.00036827,7]
[313921751,1707823874479,-8998.4,0.00036827,7]
[313921752,1707823874489,-8998.4,0.00036827,7]
[313921753,1707823874498,-8998.4,0.00036827,7]
[313921754,1707823874508,-150.0,0.00036836,7]
[313921755,1707823874519,-161.76661052,0.00036868,7]
[313921756,1707823874529,-25877.00200658,0.00036871,15]
[313921757,1707823874539,-150.0,0.00036879,2]
[313921758,1707823874549,-156.75392784,0.00036887,7]
[313921759,1707823874559,-258.73505277,0.00036895,7]
[313921760,1707823874568,-154.08080949,0.00036899,7]
[313921761,1707823874578,-9318.68,0.000369,7]
[313921762,1707823874588,-2121.08,0.000369,7]
[313921763,1707823874598,-701.87,0.000369,3]
[313921764,1707823874608,-701.87,0.000369,3]
[313921765,1707823874618,-701.87,0.000369,3]
[313921766,1707823874628,-701.87,0.000369,3]
[313921767,1707823874638,-701.87,0.000369,3]
[313921768,1707823874648,-701.87,0.000369,3]
[313921769,1707823874658,-701.87,0.000369,3]
[313921770,1707823874668,-701.87,0.000369,3]
[313921771,1707823874678,-701.87,0.000369,3]
[313921772,1707823874688,-701.87,0.000369,3]
[313921773,1707823874698,-701.87,0.000369,3]
[313921774,1707823874707,-701.87,0.000369,3]
[313921775,1707823874717,-701.87,0.000369,3]
[313921776,1707823874726,-701.87,0.000369,3]
[313921777,1707823874736,-701.87,0.000369,3]
[313921778,1707823874745,-701.87,0.000369,3]
[313921779,1707823874755,-701.87,0.000369,3]
[313921780,1707823874765,-701.87,0.000369,3]
[313921781,1707823874774,-701.87,0.000369,3]
[313921782,1707823874783,-701.87,0.000369,3]
[313921783,1707823874793,-169.26329821,0.00036903,7]
[313921784,1707823874802,-150.0,0.00036909,7]
[313921785,1707823874812,-153.5068063,0.00036921,7]
[313921786,1707823874821,-500.0,0.00036921,2]
[313921787,1707823874830,-706.95464027,0.00036932,7]
[313921788,1707823874839,-150.0,0.00036961,7]
[313921789,1707823874849,-150.94817835,0.00036972,7]
[313921790,1707823874858,-155.0079231,0.00036976,7]
[313921791,1707823874868,-150.0,0.00036981,7]
[313921792,1707823874877,-150.0,0.00036986,2]
[313921793,1707823874887,-300.0,0.00036986,7]
[313921794,1707823874898,-450.0,0.00036986,12]
[313921795,1707823874907,-617.23959222,0.00036986,17]
[313921796,1707823874917,-795.2,0.00036986,2]
[313921797,1707823874926,-500.0,0.00036987,3]
[313921798,1707823874937,-168.85258361,0.00036988,7]
[313921799,1707823874947,-478.93126526,0.00036997,2]
[313921800,1707823874957,-50000.0,0.00037,7]
[313921801,1707823874966,-1220338.5835467,0.00037,2]
[313921802,1707823874976,-311.99955575,0.00037,4]
[313921803,1707823874986,-300.0,0.00037,38]
[313921804,1707823874995,-70462.55719954,0.00037,4]
[313921805,1707823875005,-4000.0,0.00037,5]
[313921806,1707823875015,-40999.7,0.00037,2]
[313921807,1707823875024,-5000.0,0.00037,15]
[313921808,1707823875034,-4207.70203142,0.00037,14]
[313921809,1707823875044,-30261.548153,0.00037,6]
[313921810,1707823875054,-26115.3540695,0.00037,6]
[313921811,1707823875065,-3681.63,0.00037,15]
[313921812,1707823875075,-300.0,0.00037,10]
[313921813,1707823875084,-50000.0,0.00037,2]
[313921814,1707823875093,-2918.5009619,0.00037,17]
[313921815,1707823875102,-1000.0,0.00037,2]
[313921816,1707823875112,-2000.0,0.00037,2]
[313921817,1707823875123,-350.00043646,0.00037,120]
[313921818,1707823875133,-41130.93888183,0.00037,22]
[313921819,1707823875143,-398.0,0.00037,4]
[313921820,1707823875153,-254310.51034625,0.00037,30]
[313921821,1707823875163,-1150.0,0.00037,14]
[313921822,1707823875173,-10000.0,0.00037,3]
[313921823,1707823875183,-156.65242669,0.00037,4]
[313921824,1707823875193,-2046.853,0.00037,7]
[313921825,1707823875203,-455.0,0.00037,26]
[313921826,1707823875213,-650.0,0.00037,3]
[313921827,1707823875222,-1000.0,0.00037,2]
[313921828,1707823875232,-1746.97762353,0.00037003,7]
[313921829,1707823875242,-154.08080949,0.00037006,7]
[313921830,1707823875252,-166.63863412,0.00037048,7]
[313921831,1707823875262,-150.0,0.00037053,7]
[313921832,1707823875272,-159.0,0.00037063,7]
[313921833,1707823875282,-209.0,0.0003707,2]
[313921834,1707823875434,-9107.63,0.00037075,2]
[313921835,1707823875444,-150.0,0.00037077,7]
[313921836,1707823875454,-706.95464027,0.00037082,7]
[313921837,1707823875463,-154.16943476,0.00037088,7]
[313921838,1707823875473,-8998.4,0.000371,7]
[313921839,1707823875482,-8998.4,0.000371,7]
[313921840,1707823875492,-166.63863412,0.00037113,7]
[313921841,1707823875501,-150.0,0.00037126,7]
[313921842,1707823875510,-156.75392784,0.00037133,7]
[313921843,1707823875520,-153.5068063,0.00037164,7]
[313921844,1707823875530,-151.33874609,0.00037171,7]
[313921845,1707823875539,-5071.66642587,0.0003718,6]
[313921846,1707823875549,-306.24,0.0003718,2]
[313921847,1707823875557,-500.0,0.00037182,2]
[313921848,1707823875567,-151.33874609,0.00037186,7]
[313921849,1707823875576,-150.0,0.00037198,7]
[313921850,1707823875585,-9318.68,0.000372,7]
[313921851,1707823875594,-2121.08,0.000372,7]
[313921852,1707823875603,-1000.0,0.000372,13]
[313921853,1707823875612,-25557.59696807,0.000372,10]